bitfinex/quotes_SOLUSD_20250222
["timestamp","ask_amount","ask_price","bid_price","bid_amount"]
[1740185144676,1.0,170.91,170.86,20.4845]
[1740185146064,1.0,170.9,170.86,20.4845]
[1740185146380,1.5,170.89,170.85,5.8529]
[1740185146953,0.5,170.88,170.85,5.8529]
[1740185147152,1.5,170.89,170.85,5.8529]
[1740185147879,1.5,170.88,170.85,5.8529]
[1740185148881,1.5,170.88,170.84,5.9163]
[1740185148882,0.5,170.87,170.84,5.9163]
[1740185149059,1.0,170.86,170.84,0.063]
[1740185149386,81.7,170.88,170.84,0.063]
[1740185149677,81.7,170.88,170.85,0.063]
[1740185149885,81.73,170.88,170.85,0.063]
[1740185150560,1.0,170.87,170.85,0.063]
[1740185150886,81.73,170.88,170.85,0.063]
[1740185151186,1.0,170.87,170.85,0.063]
[1740185151562,1.5,170.86,170.85,0.063]
[1740185154297,7.3527,170.86,170.85,0.063]
[1740185155771,25.87799724,170.86,170.85,0.063]
[1740185156987,44.5276461,170.86,170.85,0.063]
[1740185160597,40.14964886,170.83,170.82,0.063]
[1740185160808,1.5,170.8,170.79,0.06300001]
[1740185160990,24.68529724,170.8,170.79,0.06300001]
[1740185161184,43.3349461,170.8,170.79,0.06300001]
[1740185161799,20.02529724,170.8,170.79,0.06300001]
[1740185161998,24.68529724,170.8,170.79,0.06300001]
[1740185162498,21.68529724,170.8,170.79,0.06300001]
[1740185165106,18.52529724,170.82,170.79,0.06300001]
[1740185165283,23.18529724,170.84,170.79,0.06300001]
[1740185165809,4.66,170.84,170.79,0.06300001]
[1740185167100,18.55529724,170.88,170.79,0.06300001]
[1740185167398,81.2,170.87,170.79,0.06300001]
[1740185168409,81.2,170.87,170.79,5.91810001]
[1740185168994,81.2,170.87,170.79,20.55590001]
[1740185169188,81.2,170.87,170.79,102.05590001]
[1740185170297,87.0524,170.87,170.79,102.05590001]
[1740185170602,81.2,170.87,170.79,102.05590001]
[1740185170909,18.52529724,170.86,170.79,87.41810001]
[1740185171213,18.52529724,170.84,170.79,0.06300001]
[1740185171386,81.2,170.83,170.79,0.06300001]
[1740185171909,81.2,170.83,170.79,5.91800001]
[1740185172516,81.2,170.83,170.79,0.06300001]
[1740185175204,81.23,170.83,170.79,0.06300001]
[1740185176733,0.03,170.83,170.81,18.52529724]
[1740185177038,0.03,170.83,170.82,5.8541]
[1740185180204,0.03,170.83,170.8,5.8548]
[1740185180442,0.03,170.83,170.79,5.91800001]
[1740185181414,0.03,170.83,170.79,0.06300001]
[1740185183748,81.23,170.83,170.79,0.06300001]
[1740185185448,37.2049461,170.88,170.81,18.52529724]
[1740185185449,81.23,170.88,170.81,18.52529724]
[1740185186128,81.23,170.88,170.82,20.4893]
[1740185188164,81.23,170.88,170.82,14.6352]
[1740185189154,11.86455976,170.86,170.8,5.9178]
[1740185189526,151.5,170.87,170.8,5.9178]
[1740185189852,18.64964886,170.86,170.8,5.9178]
[1740185190239,18.64964886,170.86,170.8,0.063]
[1740185192263,151.5,170.87,170.8,0.063]
[1740185194166,81.2,170.87,170.81,11.86455976]
[1740185194329,81.2,170.87,170.82,20.4893]
[1740185196967,81.2,170.87,170.82,14.6352]
[1740185199567,81.23,170.87,170.82,14.6352]
[1740185200271,11.86455976,170.86,170.81,5.8544]
[1740185200866,81.2,170.85,170.81,5.8544]
[1740185201660,81.2,170.85,170.8,0.063]
[1740185202366,0.03,170.87,170.8,0.063]
[1740185205653,18.56696353,170.87,170.8,0.063]
[1740185206048,18.64964886,170.86,170.8,0.063]
[1740185206472,81.2,170.85,170.8,0.063]
[1740185212667,87.0831,170.85,170.8,0.063]
[1740185213157,81.23,170.85,170.8,0.063]
[1740185213675,87.0831,170.85,170.8,0.063]
[1740185216357,81.2,170.84,170.8,0.063]
[1740185217173,87.0534,170.84,170.8,0.063]
[1740185217678,81.2,170.84,170.8,0.063]
[1740185220180,18.64964886,170.82,170.8,0.063]
[1740185221084,170.03696353,170.81,170.8,0.063]
[1740185221677,175.89136353,170.81,170.8,0.063]
[1740185225380,24.39136353,170.81,170.8,0.063]
[1740185225887,21.0,170.78,170.77,1e-08]
[1740185226175,39.64964886,170.75,170.72,0.063]
[1740185226385,44.18964886,170.75,170.74,0.0001]
[1740185226554,40.64964886,170.69,170.67,0.063]
[1740185226754,30.54597847,170.68,170.67,0.063]
[1740185226957,35.08597847,170.68,170.67,0.0001]
[1740185227883,40.94487847,170.68,170.67,0.0001]
[1740185228571,47.6392229,170.68,170.67,0.0001]
[1740185229375,48.6392229,170.68,170.67,0.0001]
[1740185230180,1.0,170.66,170.65,0.0001]
[1740185230372,39.2403229,170.66,170.65,0.0001]
[1740185231189,38.2403229,170.66,170.65,0.0001]
[1740185231982,20.0,170.61,170.53,1.5109]
[1740185232187,4.54,170.6,170.53,7.3749]
[1740185232485,29.05134886,170.6,170.53,1.5109]
[1740185232689,4.54,170.6,170.53,7.3749]
[1740185232993,4.54,170.6,170.53,6.8749]
[1740185234092,4.54,170.6,170.55,5.8633]
[1740185234278,4.54,170.62,170.56,18.59067404]
[1740185235187,151.5,170.65,170.6,18.59067404]
[1740185235383,81.2,170.65,170.6,18.59067404]
[1740185235584,18.64964886,170.64,170.6,18.59067404]
[1740185235786,18.64964886,170.64,170.55,120.61237404]
[1740185235976,151.5,170.63,170.55,39.11237404]
[1740185236176,157.3606,170.63,170.55,24.45397404]
[1740185236379,157.3606,170.63,170.55,5.8633]
[1740185236380,18.64964886,170.62,170.55,5.8633]
[1740185236573,18.64964886,170.62,170.56,0.03]
[1740185236787,151.5,170.61,170.56,0.03]
[1740185236988,23.18964886,170.6,170.56,0.03]
[1740185237192,81.2,170.59,170.56,0.03]
[1740185242799,18.64964886,170.64,170.56,0.03]
[1740185242800,85.74,170.63,170.56,0.03]
[1740185242998,85.74,170.63,170.57,38.59067404]
[1740185242999,81.2,170.63,170.57,38.59067404]
[1740185243505,81.2,170.63,170.58,5.8623]
[1740185245493,81.2,170.63,170.56,0.03]
[1740185246006,81.2,170.62,170.56,0.03]
[1740185249807,81.2,170.62,170.57,18.59067404]
[1740185251903,0.063,170.63,170.58,5.8623]
[1740185253004,18.71264886,170.63,170.56,0.03]
[1740185253234,37.3033229,170.63,170.57,5.8626]
[1740185254111,43.1641229,170.63,170.56,0.03]
[1740185255690,0.063,170.63,170.56,0.03]
[1740185257789,81.2,170.62,170.56,0.03]
[1740185260301,0.063,170.63,170.61,18.59067404]
[1740185261200,0.063,170.63,170.57,18.59067404]
[1740185261499,0.063,170.63,170.56,1.6619]
[1740185261698,0.063,170.63,170.57,18.59067404]
[1740185261916,0.063,170.63,170.58,5.8623]
[1740185262210,0.063,170.63,170.59,18.59067404]
[1740185262912,0.0001,170.63,170.61,18.59067404]
[1740185263091,0.0001,170.63,170.62,7.8807]
[1740185263591,85.74,170.73,170.65,20.0]
[1740185263792,85.74,170.73,170.68,18.59067404]
[1740185263998,81.2,170.73,170.68,24.44947404]
[1740185265999,81.2,170.73,170.72,18.59067404]
[1740185266205,81.2,170.76,170.72,18.59067404]
[1740185266593,81.2,170.76,170.68,24.44947404]
[1740185266799,81.2,170.75,170.7,18.59067404]
[1740185267003,81.2,170.75,170.72,18.59067404]
[1740185267221,4.6,170.77,170.72,18.59067404]
[1740185267537,4.6,170.77,170.74,18.59067404]
[1740185268017,4.6,170.77,170.72,18.59067404]
[1740185268193,10.4559,170.77,170.72,18.59067404]
[1740185268592,4.6,170.77,170.72,24.44817404]
[1740185268807,81.2,170.78,170.72,18.59067404]
[1740185269003,85.8,170.78,170.72,18.59067404]
[1740185269210,91.6554,170.78,170.72,18.59067404]
[1740185270999,91.6554,170.78,170.7,24.44857404]
[1740185272119,0.063,170.77,170.7,24.44857404]
[1740185272825,87.1189,170.77,170.7,24.44857404]
[1740185274725,81.263,170.77,170.72,18.59067404]
[1740185274925,81.263,170.77,170.74,18.59067404]
[1740185274926,0.063,170.77,170.74,18.59067404]
[1740185276110,0.063,170.77,170.72,18.59067404]
[1740185278020,0.063,170.77,170.73,5.8572]
[1740185278399,0.063,170.77,170.74,18.59067404]
[1740185279119,0.063,170.77,170.76,18.59067404]
[1740185280112,0.063,170.77,170.76,24.44677404]
[1740185281248,0.063,170.8,170.79,20.0]
[1740185281429,0.063,170.8,170.79,38.59067404]
[1740185282241,0.063,170.8,170.79,44.44577404]
[1740185282737,0.063,170.8,170.79,38.59067404]
[1740185282929,0.063,170.8,170.78,1.5915]
[1740185283137,0.063,170.8,170.77,24.44637404]
[1740185283544,0.063,170.8,170.77,5.8557]
[1740185283853,0.063,170.8,170.77,24.44637404]
[1740185284050,0.063,170.8,170.77,5.8557]
[1740185287119,0.063,170.8,170.79,38.59067404]
[1740185287324,0.063,170.8,170.79,120.09067404]
[1740185287746,0.063,170.8,170.79,125.94577404]
[1740185288252,0.03,170.83,170.82,18.59067404]
[1740185288543,0.03,170.85,170.84,20.0]
[1740185289347,0.03,170.85,170.84,38.59067404]
[1740185289654,0.03,170.85,170.84,44.44407404]
[1740185290519,0.0001,170.85,170.84,44.44407404]
[1740185291238,0.0001,170.85,170.84,47.44484304]
[1740185292731,0.0001,170.85,170.84,44.44407404]
[1740185293846,0.0001,170.85,170.84,20.0]
[1740185294236,0.0001,170.85,170.82,81.5]
[1740185294752,0.0001,170.85,170.77,1.6636]
[1740185294753,0.0001,170.85,170.78,18.59067404]
[1740185295649,0.0001,170.85,170.77,97.8326]
[1740185295949,0.0001,170.85,170.79,18.59067404]
[1740185296136,0.0001,170.85,170.81,18.59067404]
[1740185296445,0.0001,170.85,170.83,18.59067404]
[1740185297225,0.0001,170.85,170.83,100.09067404]
[1740185297924,0.0001,170.85,170.84,5.8534]
[1740185299359,0.0001,170.85,170.84,8.84337759]
[1740185299864,0.0001,170.85,170.84,5.8534]
[1740185300745,0.0001,170.85,170.83,81.5]
[1740185301060,0.0001,170.85,170.83,105.94437404]
[1740185302033,0.0001,170.85,170.83,108.87022344]
[1740185307239,0.0001,170.85,170.83,108.90022344]
[1740185308765,0.0001,170.85,170.84,35.48791033]
[1740185309685,0.063,170.91,170.87,20.0]
[1740185309883,0.063,170.91,170.9,29.63451033]
[1740185310774,0.063,170.91,170.9,35.48581033]
[1740185311582,0.063,170.91,170.9,29.63451033]
[1740185312257,0.063,170.91,170.89,5.8517]
[1740185313304,0.063,170.91,170.88,29.63451033]
[1740185313582,0.063,170.91,170.88,35.48651033]
[1740185314667,0.063,170.91,170.88,29.63451033]
[1740185314983,0.063,170.91,170.88,35.48651033]
[1740185315981,0.063,170.91,170.86,29.63451033]
[1740185316486,0.063,170.91,170.85,5.853]
[1740185316682,81.263,170.91,170.85,5.853]
[1740185319492,81.263,170.91,170.85,5.883]
[1740185321894,87.1142,170.91,170.85,5.883]
[1740185322073,87.1142,170.91,170.85,0.03]
[1740185322269,110.83451033,170.9,170.85,0.03]
[1740185322483,99.84964886,170.89,170.85,0.03]
[1740185322796,6.0974,170.88,170.85,0.03]
[1740185323206,99.84964886,170.87,170.85,0.03]
[1740185323504,81.2,170.86,170.85,0.03]
[1740185326086,85.803,170.91,170.85,5.883]
[1740185326271,4.603,170.91,170.85,5.883]
[1740185326472,4.603,170.91,170.87,29.63451033]
[1740185327314,0.063,170.91,170.87,29.63451033]
[1740185327466,0.063,170.91,170.89,29.63451033]
[1740185328495,0.063,170.91,170.9,5.8513]
[1740185330977,0.03,170.92,170.9,5.8513]
[1740185331284,0.03,170.92,170.91,29.63451033]
[1740185331510,0.03,170.92,170.91,111.13451033]
[1740185332696,0.03,170.92,170.91,116.98551033]
[1740185333183,0.03,170.92,170.91,87.351]
[1740185333979,0.03,170.92,170.91,116.98551033]
[1740185334710,0.03,170.92,170.91,105.86214078]
[1740185335780,0.03,170.97,170.91,105.86214078]
[1740185335986,0.0001,170.95,170.94,38.51114078]
[1740185336714,0.0001,170.95,170.94,63.01078964]
[1740185336890,0.0001,170.97,170.94,146.3879204]
[1740185337090,0.0001,170.97,170.96,37.16078964]
[1740185337311,0.0001,170.97,170.96,119.66078964]
[1740185338694,0.0001,170.97,170.96,131.7347882]
[1740185339186,0.0001,170.97,170.96,137.5840882]
[1740185339389,0.0001,170.97,170.96,139.2455882]
[1740185339808,0.0001,170.97,170.96,168.83072754]
[1740185340104,0.0001,170.97,170.96,139.2455882]
[1740185342623,0.0001,170.97,170.96,137.2455882]
[1740185342797,0.0001,170.97,170.96,116.93443934]
[1740185344820,0.0001,170.97,170.96,87.3493]
[1740185345026,0.0001,170.97,170.96,29.58513934]
[1740185345202,0.0001,170.97,170.94,111.08513934]
[1740185345402,0.0001,170.97,170.92,35.43563934]
[1740185346801,0.0001,170.97,170.92,29.58513934]
[1740185346997,0.0001,170.97,170.89,8.76811891]
[1740185347201,85.7401,170.97,170.88,29.58513934]
[1740185347418,18.64964886,170.96,170.86,29.58513934]
[1740185348033,18.64964886,170.96,170.89,20.0]
[1740185348333,87.0496,170.95,170.89,20.0]
[1740185348703,87.0496,170.95,170.86,38.39147436]
[1740185348903,81.2,170.95,170.88,29.58513934]
[1740185350101,81.2,170.95,170.89,5.8517]
[1740185353143,0.0001,170.97,170.92,29.58513934]
[1740185354253,0.0001,170.97,170.93,5.8503]
[1740185354957,0.0001,170.97,170.94,29.58513934]
[1740185355332,0.0001,170.97,170.94,111.08513934]
[1740185355531,0.0001,170.97,170.96,49.58513934]
[1740185355753,0.0001,170.97,170.96,131.08513934]
[1740185355951,0.0001,170.97,170.96,149.7347882]
[1740185356140,0.0001,170.97,170.96,157.5840882]
[1740185358382,0.0001,170.97,170.96,160.49975308]
[1740185360554,0.0001,171.01,171.0,49.58513934]
[1740185360743,0.0001,171.01,171.0,119.98746001]
[1740185360940,0.0001,171.03,171.0,158.12456888]
[1740185361248,0.03,171.05,171.04,20.0]
[1740185361433,0.03,171.05,171.04,119.98746001]
[1740185362440,0.03,171.05,171.04,125.83396001]
[1740185362754,0.03,171.05,171.04,136.91525569]
[1740185363325,0.0001,171.06,171.04,155.56490455]
[1740185363543,0.0001,171.06,171.04,136.91525569]
[1740185366653,0.0001,171.06,171.05,18.64964886]
[1740185367839,0.0001,171.06,171.05,100.14964886]
[1740185368531,0.0001,171.06,171.05,105.99584886]
[1740185368732,0.0001,171.06,171.05,87.3462]
[1740185371463,0.0001,171.06,171.05,106.99584886]
[1740185371857,0.0001,171.06,171.05,108.87230268]
[1740185372747,0.063,171.15,171.13,20.0]
[1740185372936,0.063,171.15,171.14,29.56875569]
[1740185373267,0.063,171.15,171.12,29.56875569]
[1740185374048,0.063,171.15,171.1,111.06875569]
[1740185374663,0.063,171.15,171.11,5.8441]
[1740185374968,0.063,171.15,171.1,113.97639746]
[1740185375555,0.063,171.15,171.08,35.41385569]
[1740185375556,6.2086,171.14,171.08,35.41385569]
[1740185376767,12.0519,171.14,171.08,35.41385569]
[1740185377460,6.2086,171.14,171.08,35.41385569]
[1740185378149,6.2086,171.14,171.08,38.30068493]
[1740185380375,6.2086,171.14,171.08,38.33068493]
[1740185382581,6.2086,171.14,171.08,27.23896934]
[1740185385487,6.2086,171.14,171.08,8.76192924]
[1740185385659,1.6658,171.13,171.08,0.03]
[1740185387068,1.6658,171.13,171.08,18.5070401]
[1740185388493,1.6658,171.13,171.09,5.8448]
[1740185390485,1.6658,171.13,171.09,20.4569]
[1740185391276,6.2086,171.14,171.1,18.4770401]
[1740185391991,0.063,171.15,171.12,18.4770401]
[1740185392197,0.063,171.15,171.14,18.4770401]
[1740185392198,0.0001,171.15,171.14,18.4770401]
[1740185392375,0.0001,171.15,171.14,99.9770401]
[1740185394173,0.0001,171.15,171.14,105.8201401]
[1740185398971,0.0001,171.15,171.14,87.3431]
[1740185399811,0.0001,171.15,171.14,105.8201401]
[1740185400104,0.0001,171.15,171.14,124.46978896]
[1740185400394,0.0001,171.15,171.14,105.8201401]
[1740185401891,0.0001,171.15,171.14,5.8431]
[1740185403173,0.0001,171.15,171.12,21.44210923]
[1740185403373,0.0001,171.15,171.14,18.4770401]
[1740185404509,0.0001,171.15,171.14,18.5400401]
[1740185405303,0.0001,171.15,171.14,24.3831401]
[1740185408393,0.0001,171.15,171.14,0.063]
[1740185417983,0.0001,171.15,171.14,5.9061]
[1740185421498,6.517,171.14,171.08,0.03]
[1740185421697,85.72,171.13,171.08,0.03]
[1740185421897,11.81867915,171.12,171.08,0.03]
[1740185422222,5.8441,171.11,171.08,0.03]
[1740185422425,85.72,171.13,171.08,0.03]
[1740185423306,91.5635,171.13,171.08,0.03]
[1740185423808,18.48802755,171.12,171.08,0.03]
[1740185424915,5.8441,171.11,171.08,0.03]
[1740185425811,171.51912755,171.1,171.08,0.03]
[1740185426010,151.5,171.09,171.08,0.03]
[1740185427407,157.3448,171.09,171.08,0.03]
[1740185427718,18.64964886,171.07,170.96,1.5436]
[1740185427907,169.98802755,171.06,170.96,1.5436]
[1740185428106,156.02,171.06,170.97,18.48802755]
[1740185429113,5.8462,171.05,170.97,24.33682755]
[1740185432529,24.33422755,171.05,170.96,5.8793]
[1740185432706,24.74432755,171.03,170.96,0.03]
[1740185432907,18.48802755,171.01,170.96,0.03]
[1740185433717,151.5,171.02,170.96,0.03]
[1740185433919,151.5,171.02,170.96,18.51802755]
[1740185434630,151.5,171.02,170.97,5.8489]
[1740185436019,81.2,171.02,170.97,5.8489]
[1740185440323,81.2,171.02,170.97,20.4713]
[1740185440825,81.2,171.02,170.97,20.5013]
[1740185443631,81.2,171.02,170.98,18.48802755]
[1740185444636,81.2,171.02,170.98,11.83953779]
[1740185445235,81.2,171.06,171.0,11.83953779]
[1740185445533,81.2,171.06,171.02,11.83953779]
[1740185448038,81.2,171.06,171.03,5.8469]
[1740185451542,81.2,171.06,170.98,13.41233779]
[1740185451753,87.0459,171.06,170.99,5.8482]
[1740185451919,87.0459,171.06,170.98,5.8485]
[1740185451920,151.5,171.05,170.98,5.8485]
[1740185452246,23.72163779,171.04,170.98,5.8485]
[1740185452440,23.72163779,171.04,170.97,5.8788]
[1740185452737,81.2,171.03,170.98,0.03]
[1740185454341,5.8472,171.02,170.98,0.03]
[1740185454513,81.2,171.01,170.98,0.03]
[1740185456533,81.2,171.0,170.98,0.03]
[1740185457949,81.2,170.99,170.98,0.03]
[1740185460535,87.0482,170.99,170.98,0.03]
[1740185460846,24.49784886,170.99,170.98,0.03]
[1740185461432,20.0,170.99,170.98,0.03]
[1740185461633,13.38743779,171.02,170.98,0.03]
[1740185461634,7.3952,171.02,170.98,0.03]
[1740185461852,1.5479,171.02,170.98,0.03]
[1740185463154,7.3952,171.02,170.98,0.03]
[1740185463830,19.23473779,171.02,170.98,0.03]
[1740185464428,20.0,170.99,170.98,0.03]
[1740185465340,44.49784886,170.99,170.98,0.03]
[1740185465539,18.64964886,170.98,170.97,0.03]
[1740185465741,30.48918665,170.98,170.97,0.03]
[1740185465944,36.68838665,170.98,170.97,0.03]
[1740185467633,42.53698665,170.98,170.97,0.03]
[1740185474544,11.1809,171.04,170.97,0.03]
[1740185474741,20.0,171.01,170.97,0.03]
[1740185474945,81.2,171.0,170.97,0.03]
[1740185475148,81.2,171.0,170.97,11.86953779]
[1740185475854,81.2,171.0,170.97,0.03]
[1740185476535,87.0479,171.0,170.97,0.03]
[1740185476853,81.2,171.0,170.97,0.03]
[1740185478054,81.2,171.0,170.97,11.86953779]
[1740185478558,81.2,171.0,170.98,5.8486]
[1740185482458,81.2,171.0,170.97,0.03]
[1740185482667,81.2,171.0,170.97,5.8789]
[1740185483861,81.2,171.0,170.97,0.03]
[1740185486150,81.2,171.0,170.97,11.86953779]
[1740185486851,81.2,171.0,170.98,5.8486]
[1740185488884,81.263,171.0,170.98,5.8486]
[1740185489676,0.063,171.0,170.98,5.8486]
[1740185491978,0.063,171.0,170.99,11.83953779]
[1740185493177,0.063,171.0,170.99,17.68773779]
[1740185496483,0.063,171.0,170.97,5.8788]
[1740185496775,0.063,171.0,170.98,11.83953779]
[1740185497156,0.063,171.0,170.97,0.03]
[1740185497894,0.063,171.0,170.97,5.8789]
[1740185499294,0.063,171.0,170.98,11.83953779]
[1740185501398,0.063,171.0,170.99,5.8482]
[1740185508003,0.063,171.0,170.98,5.8485]
[1740185508998,0.063,171.0,170.97,0.03]
[1740185509190,0.063,171.0,170.97,5.8789]
[1740185510603,0.063,171.0,170.98,11.83953779]
[1740185511206,0.063,171.0,170.98,17.68783779]
[1740185514312,0.063,171.0,170.98,17.71783779]
[1740185516912,0.063,171.0,170.99,2.89743122]
[1740185517614,0.063,171.0,170.99,8.74563122]
[1740185520396,81.2,171.07,171.0,1.5458]
[1740185520602,0.063,171.08,171.05,11.83953779]
[1740185520914,0.063,171.08,171.07,11.83953779]
[1740185521414,0.063,171.08,171.07,17.68503779]
[1740185522824,0.063,171.08,171.07,24.31646138]
[1740185524123,0.0001,171.15,171.08,18.64964886]
[1740185524313,0.0001,171.15,171.13,18.47096138]
[1740185525513,0.0001,171.15,171.14,5.8431]
[1740185528316,0.0001,171.15,171.13,18.47096138]
[1740185528496,0.0001,171.15,171.12,5.8435]
[1740185529525,0.0001,171.15,171.11,24.31506138]
[1740185530024,0.0001,171.15,171.13,18.47096138]
[1740185531410,0.0001,171.15,171.13,24.31416138]
[1740185537533,0.0001,171.15,171.12,2.93732184]
[1740185537730,0.0001,171.15,171.11,18.47096138]
[1740185539025,0.0001,171.15,171.1,5.8444]
[1740185540648,0.0001,171.15,171.14,18.47096138]
[1740185542144,0.0001,171.15,171.14,24.31406138]
[1740185544024,0.0001,171.15,171.14,25.77725919]
[1740185544532,0.0001,171.15,171.14,28.77532834]
[1740185544725,0.0001,171.15,171.14,25.77725919]
[1740185544926,0.0001,171.15,171.14,1.46319781]
[1740185545444,0.0001,171.15,171.12,24.31446138]
[1740185546241,0.0001,171.15,171.12,5.8435]
[1740185546419,0.0001,171.15,171.12,24.31446138]
[1740185547334,0.0001,171.15,171.14,18.47096138]
[1740185548727,0.0001,171.15,171.14,24.31406138]
[1740185550253,0.0001,171.15,171.14,105.81406138]
[1740185550432,0.0001,171.15,171.14,107.27728224]
[1740185553847,0.0001,171.15,171.14,88.80632086]
[1740185554454,0.0001,171.15,171.14,87.3431]
[1740185554867,0.0001,171.15,171.13,5.8435]
[1740185556836,0.0001,171.15,171.09,5.8448]
[1740185557035,0.0001,171.15,171.14,1.46342518]
[1740185558251,0.0001,171.15,171.1,1.46342518]
[1740185559355,0.0001,171.15,171.1,7.30762518]
[1740185560656,0.0001,171.15,171.11,1.46342518]
[1740185561738,0.0001,171.15,171.12,1.46342518]
[1740185561739,81.2,171.14,171.12,1.46342518]
[1740185561940,87.329,171.13,171.12,1.46342518]
[1740185563261,93.1725,171.13,171.09,5.42550227]
[1740185563753,151.5,171.12,171.09,5.42550227]
[1740185563939,1.5389,171.1,171.08,0.063]
[1740185564147,81.2,171.09,171.08,0.063]
[1740185565454,87.0448,171.09,171.08,0.063]
[1740185566157,81.2,171.09,171.08,0.063]
[1740185568942,81.2,171.12,171.08,0.063]
[1740185569150,81.2,171.12,171.08,18.53396138]
[1740185569353,81.2001,171.15,171.11,5.8441]
[1740185569666,81.2001,171.15,171.12,1.46415395]
[1740185570840,81.2001,171.15,171.12,19.93511533]
[1740185571361,81.2001,171.15,171.13,1.46415395]
[1740185572346,0.0001,171.15,171.12,7.30795395]
[1740185572650,0.0001,171.15,171.12,1.46415395]
[1740185574065,0.0001,171.15,171.13,1.46415395]
[1740185575852,0.0001,171.15,171.12,1.46415395]
[1740185577253,0.0001,171.15,171.09,11.28090472]
[1740185577445,81.2,171.14,171.09,11.28090472]
[1740185577956,81.2,171.14,171.1,4.24722809]
[1740185578138,81.2,171.14,171.1,7.64513517]
[1740185578343,81.2,171.14,171.1,27.57988296]
[1740185578546,81.2,171.14,171.1,33.42428296]
[1740185578857,81.2,171.14,171.1,29.17705487]
[1740185579263,81.2,171.14,171.11,3.39790708]
[1740185579843,81.2,171.14,171.11,9.10787879]
[1740185580058,81.2,171.14,171.11,14.95187879]
[1740185580651,81.2,171.14,171.12,18.47096138]
[1740185581456,0.0001,171.15,171.13,1.46378641]
[1740185581651,0.0001,171.15,171.14,18.47096138]
[1740185582052,0.0001,171.15,171.14,24.31406138]
[1740185583180,0.0001,171.15,171.14,19.93474779]
[1740185583468,0.0001,171.15,171.14,1.46378641]
[1740185584365,0.0001,171.15,171.11,5.43259208]
[1740185584769,81.2,171.14,171.11,5.43259208]
[1740185585671,81.2,171.14,171.1,3.39604928]
[1740185586078,81.2,171.14,171.12,1.46371389]
[1740185587367,81.2,171.14,171.09,5.8448]
[1740185587874,81.2,171.14,171.1,4.24557166]
[1740185588482,81.2,171.13,171.1,4.24557166]
[1740185588694,81.2,171.13,171.11,1.46369971]
[1740185588985,81.2,171.12,171.11,1.46369971]
[1740185589990,87.0438,171.12,171.08,0.063]
[1740185590171,81.2,171.12,171.08,5.9081]
[1740185591659,81.2,171.12,171.09,1.46390557]
[1740185592058,81.2,171.12,171.09,7.30870557]
[1740185592774,81.2,171.12,171.1,1.46390557]
[1740185593765,81.2,171.12,171.09,5.8448]
[1740185595270,81.2,171.12,171.08,0.063]
[1740185596174,81.2,171.12,171.09,1.46387535]
[1740185597279,81.2,171.12,171.09,25.77963673]
[1740185597466,81.2,171.12,171.11,18.47096138]
[1740185597978,81.2,171.12,171.1,1.46387535]
[1740185598179,81.2,171.12,171.11,4.24948765]
[1740185599174,81.2,171.12,171.11,9.11313188]
[1740185599556,0.03,171.14,171.11,14.95713188]
[1740185599974,0.03,171.14,171.11,9.11313188]
[1740185600274,18.67964886,171.14,171.11,9.11313188]
[1740185600470,18.67964886,171.14,171.12,5.713363]
[1740185600672,18.67964886,171.14,171.12,9.11313188]
[1740185601574,24.49314886,171.13,171.12,4.86364423]
[1740185601767,24.49314886,171.13,171.12,3.39976888]
[1740185602156,24.49314886,171.13,171.08,0.063]